bitfinex/quotes_BTCUSD_20251117
["timestamp","ask_amount","ask_price","bid_price","bid_amount"]
[1763385864505,0.01956706,95155.0,95145.0,0.01265504]
[1763385864710,0.01956706,95154.0,95146.0,0.01268168]
[1763385864908,0.01956706,95153.0,95146.0,0.01268168]
[1763385865111,0.01956706,95152.0,95142.0,0.10416178]
[1763385865415,0.01956706,95151.0,95145.0,0.001]
[1763385865587,0.52649962,95160.0,95145.0,0.001]
[1763385865787,0.01956881,95159.0,95142.0,0.10416178]
[1763385865970,0.01956881,95158.0,95146.0,0.001]
[1763385866167,0.01956881,95157.0,95147.0,0.01151618]
[1763385866367,0.01956881,95156.0,95147.0,0.01151618]
[1763385866614,0.01956881,95155.0,95147.0,0.01151618]
[1763385866808,0.01956881,95154.0,95147.0,0.01151618]
[1763385867009,0.01956881,95153.0,95147.0,0.01151618]
[1763385867209,0.01956881,95152.0,95140.0,0.00999999]
[1763385867417,0.52649962,95160.0,95122.0,0.03160817]
[1763385867418,0.52649962,95150.0,95130.0,0.01999998]
[1763385867732,0.01956881,95149.0,95147.0,0.001]
[1763385867965,0.01956881,95149.0,95147.0,0.00094]
[1763385868143,0.01956881,95148.0,95147.0,0.00094]
[1763385868344,0.01956881,95148.0,95147.0,0.00194]
[1763385868598,0.01956881,95159.0,95147.0,0.00094]
[1763385868797,0.01956881,95159.0,95147.0,0.00194]
[1763385868798,0.04990881,95159.0,95147.0,0.00194]
[1763385868989,0.01956881,95158.0,95147.0,0.001]
[1763385869190,0.01956881,95157.0,95120.0,0.02039998]
[1763385869393,0.52649962,95140.0,95130.0,0.001]
[1763385869704,0.01956881,95139.0,95130.0,0.001]
[1763385869900,0.52649962,95140.0,95127.0,0.00148384]
[1763385869901,0.01956881,95138.0,95127.0,0.00148384]
[1763385870141,0.01956881,95137.0,95127.0,0.00148384]
[1763385870342,0.01956881,95136.0,95127.0,0.00148384]
[1763385870551,0.01956881,95135.0,95127.0,0.00152801]
[1763385870723,0.01955378,95134.0,95127.0,0.00152801]
[1763385870926,0.52649962,95140.0,95130.0,0.001]
[1763385871135,0.01954662,95139.0,95130.0,0.001]
[1763385871341,0.01954662,95138.0,95130.0,0.001]
[1763385871558,0.01954662,95137.0,95130.0,0.001]
[1763385871765,0.01954662,95136.0,95130.0,0.001]
[1763385871945,0.01954662,95135.0,95130.0,0.001]
[1763385872127,0.01954662,95134.0,95130.0,0.002]
[1763385872320,0.01954662,95133.0,95130.0,0.001]
[1763385872522,0.01954662,95132.0,95127.0,0.00252801]
[1763385872764,0.01954662,95131.0,95127.0,0.00252801]
[1763385872965,0.01954662,95130.0,95127.0,0.00252801]
[1763385873141,0.01954662,95129.0,95127.0,0.00152801]
[1763385873361,0.01954662,95128.0,95127.0,0.00152801]
[1763385874533,0.00421607,95138.0,95112.0,0.06408979]
[1763385874732,0.0195076,95137.0,95113.0,0.10366938]
[1763385875042,0.36227655,95130.0,95113.0,0.10366938]
[1763385875974,0.01950178,95129.0,95113.0,0.10366938]
[1763385876174,0.36227655,95130.0,95113.0,0.10366938]
[1763385876374,0.03161853,95143.0,95114.0,0.10366938]
[1763385876590,0.52649962,95140.0,95114.0,0.10366938]
[1763385876762,0.52649962,95130.0,95114.0,0.10366938]
[1763385879982,0.52649962,95130.0,95115.0,0.00359651]
[1763385881659,0.52649962,95130.0,95115.0,0.10366938]
[1763385882747,0.52649962,95140.0,95115.0,0.10366938]
[1763385884066,0.01947131,95139.0,95115.0,0.10366938]
[1763385884268,0.52649962,95140.0,95115.0,0.10366938]
[1763385884443,0.01947196,95139.0,95115.0,0.10366938]
[1763385884623,0.52649962,95140.0,95112.0,0.06408979]
[1763385884831,0.01947196,95139.0,95112.0,0.06408979]
[1763385885049,0.52649962,95140.0,95112.0,0.06408979]
[1763385885355,0.01947191,95139.0,95112.0,0.06408979]
[1763385885558,0.52649962,95140.0,95112.0,0.06408979]
[1763385885761,0.01947297,95139.0,95113.0,0.10366938]
[1763385885960,0.52649962,95140.0,95113.0,0.10366938]
[1763385886146,0.01947255,95139.0,95113.0,0.10366938]
[1763385886607,0.52649962,95130.0,95113.0,0.10366938]
[1763385887378,0.52649962,95130.0,95112.0,0.06408979]
[1763385887992,0.52649962,95130.0,95113.0,0.001]
[1763385888190,0.52649962,95130.0,95112.0,0.06408979]
[1763385888592,0.52649962,95130.0,95112.0,0.02908978]
[1763385888812,0.52649962,95130.0,95113.0,0.001]
[1763385889418,0.52649962,95130.0,95112.0,0.02908978]
[1763385889616,0.52649962,95130.0,95112.0,0.03008978]
[1763385889816,0.52649962,95130.0,95112.0,0.13375916]
[1763385890196,0.52649962,95130.0,95113.0,0.001]
[1763385890357,0.52649962,95130.0,95112.0,0.13275916]
[1763385890576,0.52649962,95130.0,95113.0,0.001]
[1763385891400,0.52649962,95130.0,95113.0,0.002]
[1763385891603,0.52649962,95130.0,95114.0,0.10366938]
[1763385891965,0.52649962,95130.0,95113.0,0.001]
[1763385892675,0.52649962,95130.0,95112.0,0.13275916]
[1763385893018,0.52681481,95130.0,95114.0,0.002]
[1763385893173,0.52681481,95130.0,95114.0,0.001]
[1763385893379,0.52681481,95130.0,95112.0,0.13275916]
[1763385893793,0.52681481,95130.0,95113.0,0.10566938]
[1763385894035,0.52681481,95130.0,95113.0,0.10466938]
[1763385894445,0.52681481,95130.0,95114.0,0.001]
[1763385894659,0.52681481,95130.0,95113.0,0.001]
[1763385894873,0.52681481,95123.0,95113.0,0.001]
[1763385895409,0.52681481,95123.0,95112.0,0.02908978]
[1763385895640,0.52681481,95123.0,95111.0,6.38501616]
[1763385895836,0.52681481,95123.0,95115.0,0.10416178]
[1763385897313,0.52681481,95123.0,95115.0,0.10516178]
[1763385898375,0.52681481,95123.0,95115.0,0.002]
[1763385899128,0.52681481,95125.0,95115.0,0.002]
[1763385899331,0.01952602,95124.0,95115.0,0.002]
[1763385899647,0.52681481,95125.0,95115.0,0.002]
[1763385899648,0.01952602,95123.0,95115.0,0.002]
[1763385899853,0.52681481,95125.0,95115.0,0.002]
[1763385900049,0.01953377,95124.0,95115.0,0.001]
[1763385900260,0.01953377,95123.0,95115.0,0.001]
[1763385900456,0.01953377,95122.0,95115.0,0.002]
[1763385900779,0.01953377,95122.0,95118.0,0.0002483]
[1763385901183,0.03722,95119.0,95118.0,0.0002483]
[1763385901443,0.07157335,95119.0,95118.0,0.0002483]
[1763385901743,0.01953377,95119.0,95118.0,0.0002483]
[1763385901947,0.01953377,95119.0,95118.0,0.00527072]
[1763385902149,0.01953377,95119.0,95118.0,0.00627072]
[1763385902358,0.01953377,95119.0,95118.0,0.0012483]
[1763385902570,0.01953377,95119.0,95118.0,0.00527118]
[1763385902778,0.01953377,95119.0,95118.0,0.0002483]
[1763385902981,0.01953377,95119.0,95111.0,6.21967804]
[1763385903196,0.01953377,95118.0,95111.0,6.21967804]
[1763385903402,0.01953377,95117.0,95112.0,0.10366938]
[1763385903610,0.11236874,95123.0,95112.0,0.10366938]
[1763385903611,0.01953377,95116.0,95112.0,0.10366938]
[1763385903826,0.01953377,95115.0,95111.0,6.21967804]
[1763385904013,0.52681481,95121.0,95111.0,6.21967804]
[1763385904231,0.01951523,95120.0,95111.0,6.21967804]
[1763385904446,0.52681481,95130.0,95112.0,0.10416178]
[1763385904661,0.01951595,95129.0,95113.0,0.10366938]
[1763385904879,0.01951595,95128.0,95112.0,0.10416178]
[1763385905097,0.52681481,95122.0,95112.0,0.10416178]
[1763385905558,0.0316179,95136.0,95112.0,0.10416178]
[1763385905774,0.52681481,95130.0,95112.0,0.10416178]
[1763385906003,0.52681481,95122.0,95112.0,0.10416178]
[1763385906469,0.52681481,95130.0,95112.0,0.10416178]
[1763385906689,0.01951554,95129.0,95112.0,0.10416178]
[1763385906923,0.52681481,95130.0,95112.0,0.10416178]
[1763385906924,0.01951554,95128.0,95112.0,0.10416178]
[1763385907140,0.01951554,95127.0,95112.0,0.10416178]
[1763385907361,0.01951554,95126.0,95112.0,0.10416178]
[1763385907579,0.01951554,95125.0,95112.0,0.10416178]
[1763385907808,0.52681481,95130.0,95112.0,0.10416178]
[1763385908025,0.01951564,95129.0,95112.0,0.10416178]
[1763385908241,0.01951564,95128.0,95112.0,0.10416178]
[1763385908448,0.01951564,95127.0,95112.0,0.10416178]
[1763385908660,0.01951564,95126.0,95112.0,0.1559636]
[1763385908876,0.01951564,95125.0,95112.0,0.1559636]
[1763385909123,0.01951545,95124.0,95112.0,0.1559636]
[1763385909350,0.52681481,95130.0,95112.0,0.10416178]
[1763385909561,0.0195158,95129.0,95112.0,0.10416178]
[1763385909774,0.0195158,95128.0,95112.0,0.10416178]
[1763385909983,0.0195158,95127.0,95112.0,0.05516178]
[1763385910199,0.0195158,95126.0,95112.0,0.0689849]
[1763385910415,0.0195158,95125.0,95112.0,0.0689849]
[1763385910649,0.52681481,95130.0,95112.0,0.1179849]
[1763385910869,0.01951315,95129.0,95112.0,0.1179849]
[1763385911082,0.01951315,95128.0,95112.0,0.1179849]
[1763385911322,0.01951315,95127.0,95113.0,0.10366938]
[1763385911527,0.01951315,95126.0,95113.0,0.10366938]
[1763385911730,0.52681481,95130.0,95113.0,0.10366938]
[1763385911928,0.01951349,95129.0,95113.0,0.10366938]
[1763385912146,0.01951349,95128.0,95113.0,0.10366938]
[1763385912355,0.01951349,95127.0,95112.0,0.10416178]
[1763385912559,0.01951349,95126.0,95112.0,0.10416178]
[1763385912758,0.52681481,95130.0,95112.0,0.10416178]
[1763385912978,0.0195136,95129.0,95112.0,0.10416178]
[1763385913114,0.0195136,95128.0,95112.0,0.10416178]
[1763385913316,0.0195136,95127.0,95112.0,0.10416178]
[1763385913544,0.0195136,95126.0,95113.0,0.00453548]
[1763385913744,0.0195136,95125.0,95114.0,0.10366938]
[1763385913960,0.54929021,95150.0,95120.0,0.00999999]
[1763385914155,0.0419924,95149.0,95134.0,0.10416178]
[1763385914353,0.0419924,95149.0,95120.0,0.00999999]
[1763385914354,0.52681481,95144.0,95120.0,0.00999999]
[1763385914515,0.52681481,95140.0,95130.0,0.10416178]
[1763385914716,0.019517,95139.0,95130.0,0.10416178]
[1763385914918,0.019517,95138.0,95130.0,0.10416178]
[1763385915157,0.019517,95137.0,95114.0,0.10366938]
[1763385915384,0.52681481,95130.0,95127.0,0.10416178]
[1763385915611,0.52681481,95140.0,95127.0,0.10416178]
[1763385915859,0.0195134,95139.0,95130.0,0.001]
[1763385916100,0.0195134,95138.0,95130.0,0.002]
[1763385916302,0.01951091,95137.0,95130.0,0.001]
[1763385916507,0.01951091,95136.0,95130.0,0.001]
[1763385916708,0.01951091,95135.0,95130.0,0.001]
[1763385916915,1.05362962,95140.0,95130.0,0.001]
[1763385917071,0.01950589,95139.0,95117.0,0.02161597]
[1763385917271,0.52681481,95130.0,95118.0,0.08738836]
[1763385917515,0.52681481,95140.0,95127.0,0.001]
[1763385917721,0.52681481,95137.0,95127.0,0.001]
[1763385917978,0.01950417,95136.0,95113.0,0.03161597]
[1763385918179,0.52681481,95130.0,95113.0,0.03161597]
[1763385918818,0.52681481,95123.0,95111.0,6.21967804]
[1763385919275,0.52681481,95123.0,95112.0,0.10416178]
[1763385919451,0.52681481,95121.0,95111.0,6.21967804]
[1763385919678,0.52681481,95121.0,95113.0,0.001]
[1763385919979,0.52681481,95121.0,95111.0,6.21967804]
[1763385919980,0.02817,95112.0,95111.0,6.21967804]
[1763385920136,0.02245419,95119.0,95111.0,6.22067804]
[1763385920334,0.01950067,95120.0,95111.0,6.22067804]
[1763385920335,0.01950067,95118.0,95111.0,6.22067804]
[1763385920517,0.02245419,95120.0,95111.0,6.21967804]
[1763385920910,1.05362962,95121.0,95111.0,6.21967804]
[1763385921120,0.02245419,95120.0,95111.0,6.21967804]
[1763385922156,0.02857,95119.0,95111.0,6.21967804]
[1763385922370,0.03517,95112.0,95111.0,6.21967804]
[1763385922565,0.05057839,95118.0,95111.0,6.21967804]
[1763385922765,0.03517,95112.0,95111.0,6.21967804]
[1763385923389,0.08898,95112.0,95111.0,6.21967804]
[1763385923600,0.10579284,95112.0,95111.0,6.21967804]
[1763385923851,0.10579284,95112.0,95111.0,6.18804182]
[1763385923852,2.17166577,95112.0,95111.0,6.18804182]
[1763385924057,2.17166577,95112.0,95111.0,6.0983156]
[1763385924315,2.17166577,95112.0,95111.0,5.93058938]
[1763385924520,2.19114392,95112.0,95111.0,5.42792036]
[1763385924737,2.19114392,95112.0,95111.0,5.39628414]
[1763385924943,2.21582217,95112.0,95111.0,5.36464792]
[1763385925164,2.21582217,95112.0,95111.0,5.3330117]
[1763385925364,2.21582217,95112.0,95111.0,5.30137548]
[1763385925607,2.21782217,95112.0,95111.0,4.76707024]
[1763385925834,2.21782217,95112.0,95111.0,4.73543402]
[1763385926474,2.21982217,95112.0,95111.0,4.26440122]
[1763385926883,2.21982217,95112.0,95111.0,4.03488681]
[1763385926884,2.25511396,95112.0,95111.0,4.03488681]
[1763385927097,2.21982217,95112.0,95111.0,4.03488681]
[1763385927314,2.21782217,95112.0,95111.0,4.03465374]
[1763385927533,2.20651363,95112.0,95111.0,2.74063974]
[1763385927735,2.22903569,95112.0,95111.0,0.74932403]
[1763385927875,2.23103569,95112.0,95111.0,0.65284644]
[1763385928101,2.18910335,95112.0,95111.0,0.49227184]
[1763385928454,0.28457147,95101.0,95100.0,0.000612]
[1763385928657,0.04341874,95087.0,95048.0,0.05402]
[1763385928859,0.10701874,95075.0,95074.0,0.98800335]
[1763385929068,2.10701874,95075.0,95074.0,0.98458175]
[1763385929274,2.16131874,95075.0,95074.0,0.98458175]
[1763385929704,2.13866637,95075.0,95074.0,0.97958175]
[1763385930143,0.13866637,95075.0,95074.0,0.97958175]
[1763385930370,0.10523637,95075.0,95074.0,0.97958175]
[1763385930589,0.02817,95080.0,95074.0,0.97958175]
[1763385930802,0.001,95075.0,95074.0,0.97958175]
[1763385931229,0.001,95075.0,95074.0,1.07024175]
[1763385931658,0.5,95080.0,95074.0,1.06324175]
[1763385931868,0.5,95080.0,95075.0,0.05402]
[1763385932096,0.5,95080.0,95079.0,0.03664]
[1763385932510,0.5,95080.0,95079.0,0.09066]
[1763385933373,0.5,95080.0,95079.0,0.08966]
[1763385933619,0.5,95080.0,95074.0,0.97258175]
[1763385933620,2.04341874,95079.0,95074.0,0.97258175]
[1763385933854,2.03543,95075.0,95074.0,0.97258175]
[1763385934105,2.07884874,95075.0,95074.0,0.97258175]
[1763385934309,1.90462196,95075.0,95074.0,0.97258175]
[1763385934515,0.13314874,95075.0,95074.0,0.97258175]
[1763385934727,2.13314874,95075.0,95074.0,0.97258175]
[1763385934932,2.07884874,95075.0,95074.0,0.97258175]
[1763385935150,2.07884874,95075.0,95074.0,0.97354627]
[1763385936008,2.13414874,95075.0,95074.0,0.97354627]
[1763385936870,2.13414874,95075.0,95074.0,0.96854627]
[1763385937306,1.96257253,95075.0,95074.0,0.96854627]
[1763385937948,2.17193277,95075.0,95074.0,0.96854627]
[1763385938163,1.99322095,95075.0,95074.0,0.96854627]
[1763385938374,1.99422095,95075.0,95074.0,0.96854627]
[1763385938805,1.99422095,95075.0,95074.0,0.89054627]
[1763385939243,2.03763969,95075.0,95074.0,0.89054627]
[1763385940801,2.24799993,95075.0,95074.0,0.89054627]
[1763385941473,2.24899993,95075.0,95074.0,0.89054627]
[1763385941682,2.26552311,95075.0,95074.0,0.89054627]
[1763385941884,2.03763969,95075.0,95074.0,0.89054627]
[1763385942113,1.98333969,95075.0,95074.0,0.89054627]
[1763385942314,1.95594028,95075.0,95074.0,0.89054627]
[1763385942913,1.90158154,95075.0,95074.0,0.89054627]
[1763385943500,1.90358154,95075.0,95074.0,0.89054627]
[1763385943706,1.90558154,95075.0,95074.0,0.89054627]
[1763385944333,0.03564842,95075.0,95074.0,0.98120627]
[1763385944541,0.004,95075.0,95074.0,0.98120627]
[1763385944775,0.02052089,95075.0,95074.0,0.96129541]
[1763385944983,0.01852089,95075.0,95074.0,0.96129541]
[1763385945395,0.001,95075.0,95074.0,0.87063541]
[1763385945608,0.003,95075.0,95074.0,0.87063541]
[1763385945777,0.003,95075.0,95074.0,0.85727541]
[1763385945985,0.002,95075.0,95074.0,0.85727541]
[1763385946204,0.5,95080.0,95074.0,0.85727541]
[1763385946205,0.5,95080.0,95074.0,0.91129541]
[1763385946369,2.03054,95075.0,95074.0,0.81967089]
[1763385946566,2.07395874,95075.0,95074.0,0.81967089]
[1763385947011,2.07295874,95075.0,95074.0,0.81967089]
[1763385947249,2.32492741,95075.0,95074.0,0.81967089]
[1763385947438,2.09229488,95075.0,95074.0,0.81967089]
[1763385948062,2.14410608,95075.0,95074.0,0.81967089]
[1763385948703,2.16062814,95075.0,95074.0,0.81967089]
[1763385948904,2.16162814,95075.0,95074.0,0.81967089]
[1763385949095,2.13208814,95075.0,95074.0,0.81967089]
[1763385949448,2.13108814,95075.0,95074.0,0.81967089]
[1763385949650,2.13208814,95075.0,95074.0,0.81967089]
[1763385950868,2.16162814,95075.0,95074.0,0.81967089]
[1763385951284,2.13208814,95075.0,95074.0,0.81967089]
[1763385952056,2.18638814,95075.0,95074.0,0.81967089]
[1763385952562,2.18638814,95075.0,95074.0,0.82063541]
[1763385953138,2.18638814,95075.0,95074.0,0.80797114]
[1763385953350,2.13208814,95075.0,95074.0,0.74797114]
[1763385954436,2.10254814,95075.0,95074.0,0.74797114]
[1763385955941,2.17123388,95075.0,95074.0,0.74797114]
[1763385956184,2.13388814,95075.0,95074.0,0.74797114]
[1763385956374,2.10254814,95075.0,95074.0,0.74797114]
[1763385958777,2.11736608,95075.0,95074.0,0.74797114]
[1763385960000,2.32772632,95075.0,95074.0,0.74797114]
[1763385960181,2.11736608,95075.0,95074.0,0.74797114]
[1763385960382,2.32772632,95075.0,95074.0,0.74797114]
[1763385960790,2.11736608,95075.0,95074.0,0.74797114]
[1763385960993,0.04260734,95075.0,95074.0,0.74862114]
[1763385961199,0.04663117,95075.0,95074.0,0.79481114]
[1763385961830,0.02033614,95075.0,95074.0,0.87068114]
[1763385962627,0.02033614,95075.0,95074.0,0.79481114]
[1763385962835,0.02033614,95075.0,95074.0,0.87068114]
[1763385964424,0.01933614,95075.0,95074.0,0.87068114]
[1763385968193,0.5,95080.0,95074.0,0.87068114]
[1763385968371,0.5,95080.0,95079.0,0.04619]
[1763385968577,0.5,95080.0,95079.0,0.00419]
[1763385968822,0.5,95080.0,95079.0,0.08006]
[1763385972764,0.501,95080.0,95079.0,0.08006]
[1763385973104,0.5,95080.0,95079.0,0.08006]
[1763385973511,0.501,95080.0,95079.0,0.08006]
[1763385973711,0.501,95080.0,95079.0,0.0808867]
[1763385973914,0.501,95080.0,95079.0,0.0050167]
[1763385974537,0.501,95080.0,95079.0,0.0008267]
[1763385974931,2.8748229,95080.0,95079.0,0.0008267]
[1763385975134,0.21036024,95075.0,95074.0,0.71100662]
[1763385975330,2.27690657,95075.0,95074.0,0.71100662]
[1763385975536,2.40147385,95075.0,95074.0,0.71100662]
[1763385975735,2.41799697,95075.0,95074.0,0.71100662]
[1763385975999,2.40147385,95075.0,95074.0,0.64000662]
[1763385976142,2.19111361,95075.0,95074.0,0.64000662]
[1763385976338,2.26357899,95075.0,95074.0,0.64000662]
[1763385976806,2.26557899,95075.0,95074.0,0.64000662]
[1763385976991,2.20963679,95075.0,95074.0,0.64000662]
[1763385977132,2.20763679,95075.0,95074.0,0.64000662]
[1763385977532,2.20863679,95075.0,95074.0,0.64000662]
[1763385978828,2.26457899,95075.0,95074.0,0.64000662]
[1763385978988,2.26657899,95075.0,95074.0,0.64000662]
[1763385979510,2.26457899,95075.0,95074.0,0.64000662]
[1763385979709,2.26557899,95075.0,95074.0,0.64000662]
[1763385979926,2.29699155,95075.0,95074.0,0.64000662]
[1763385980235,2.31838599,95075.0,95074.0,0.64000662]
[1763385981179,2.26246583,95075.0,95074.0,0.64000662]
[1763385981383,2.26246583,95075.0,95033.0,0.07354]
[1763385981384,0.04341874,95069.0,95033.0,0.00223731]
[1763385981608,0.04341874,95069.0,94995.0,0.04341874]
[1763385981609,0.03522,95051.0,95000.0,30.730578]
[1763385981819,2.0,95049.0,95000.0,30.730578]
[1763385982027,0.06810656,95048.0,95000.0,30.730578]
[1763385982240,2.04341874,95046.0,95017.0,0.00201129]
[1763385982524,0.04341874,95044.0,95017.0,0.00201129]
[1763385982724,2.04341874,95042.0,95000.0,30.730578]
[1763385982930,2.0,95037.0,95011.0,9.96065]
[1763385983140,2.0,95035.0,95011.0,9.96065]
[1763385983349,2.0,95033.0,95011.0,9.96065]
[1763385983551,0.0457234,95032.0,95011.0,9.96065]
[1763385983801,0.01941648,95031.0,95011.0,9.96065]
[1763385983998,0.04572396,95030.0,95011.0,9.96065]
[1763385984205,0.08808648,95029.0,95011.0,9.96065]
[1763385984400,0.04572451,95028.0,95011.0,9.96065]
[1763385984605,0.07949,95012.0,95011.0,9.96065]
[1763385984763,0.1543213,95012.0,95011.0,9.96065]
[1763385984965,0.26612217,95012.0,95011.0,9.96065]
[1763385985174,0.28791501,95012.0,95011.0,9.96065]
[1763385985375,2.28791501,95012.0,95011.0,9.96065]
[1763385986253,2.28891501,95012.0,95011.0,9.96065]
[1763385986642,2.28891501,95012.0,95011.0,9.96252555]
[1763385986821,2.28991501,95012.0,95011.0,9.96252555]
[1763385987145,2.26758935,95012.0,95011.0,9.96252555]
[1763385987344,2.28984229,95012.0,95011.0,9.96252555]
[1763385988172,2.26758935,95012.0,95011.0,9.96252555]
[1763385988374,2.24579651,95012.0,95011.0,9.96252555]
[1763385988577,2.24479651,95012.0,95011.0,9.96252555]
[1763385988787,2.26761327,95012.0,95011.0,9.96252555]
[1763385988999,2.26661327,95012.0,95011.0,9.96252555]
[1763385989445,2.28314492,95012.0,95011.0,9.96252555]
[1763385989658,2.28514492,95012.0,95011.0,9.96252555]
[1763385990133,2.25373236,95012.0,95011.0,9.96252555]
[1763385990350,2.28313051,95012.0,95011.0,9.96252555]
[1763385990552,2.05166805,95012.0,95011.0,9.88352555]
[1763385990770,2.02985129,95012.0,95011.0,9.88352555]
[1763385990981,2.07399129,95012.0,95011.0,9.88352555]
[1763385991839,2.02985129,95012.0,95011.0,9.88352555]
[1763385992262,0.02985129,95012.0,95011.0,9.88352555]
[1763385992734,0.02685129,95012.0,95011.0,9.93091555]
[1763385992955,0.01753165,95012.0,95011.0,9.93091555]
[1763385993167,0.01853165,95012.0,95011.0,9.88352555]
[1763385993380,0.01853165,95012.0,95011.0,9.87852555]
[1763385993381,0.01753165,95012.0,95011.0,9.87852555]
[1763385993594,0.01853165,95012.0,95011.0,9.87852555]
[1763385994055,0.01753165,95012.0,95011.0,9.87852555]
[1763385994475,0.04384411,95012.0,95011.0,9.87852555]
[1763385994683,0.04284411,95012.0,95011.0,9.87852555]
[1763385994904,0.04384411,95012.0,95011.0,9.87852555]
[1763385995118,0.01753165,95012.0,95011.0,9.87852555]
[1763385995379,0.01653165,95012.0,95011.0,9.87852555]
[1763385995831,0.01853165,95012.0,95011.0,9.87852555]
[1763385996477,0.01853165,95012.0,95011.0,9.99272555]
[1763385996918,0.01853165,95012.0,95011.0,9.92591555]
[1763385997131,0.01853165,95012.0,95011.0,9.87852555]
[1763385997551,0.01853165,95012.0,95011.0,9.80052555]
[1763385998433,2.12444638,95012.0,95011.0,9.80052555]
[1763385998628,2.14342839,95012.0,95011.0,9.80052555]
[1763385999279,2.17332111,95012.0,95011.0,9.80052555]
[1763385999483,2.15578946,95012.0,95011.0,9.80052555]
[1763385999659,2.15478946,95012.0,95011.0,9.80052555]
[1763386000021,2.15578946,95012.0,95011.0,9.80052555]
[1763386000222,2.15778946,95012.0,95011.0,9.80052555]
[1763386000453,2.36828918,95012.0,95011.0,9.80052555]
[1763386001844,2.41170792,95012.0,95011.0,9.80052555]
[1763386002068,2.2012082,95012.0,95011.0,9.80052555]
[1763386002204,2.22344986,95012.0,95011.0,9.80052555]
[1763386002400,2.19355714,95012.0,95011.0,9.80052555]
[1763386002603,2.20716319,95012.0,95011.0,9.80052555]
[1763386002825,2.21752152,95012.0,95011.0,9.80052555]
[1763386003228,2.16947085,95012.0,95011.0,9.80052555]
[1763386003427,2.04457411,95012.0,95011.0,9.80052555]
[1763386003637,2.02231332,95012.0,95011.0,9.80052555]
[1763386004244,2.04459599,95012.0,95011.0,9.80052555]
[1763386004452,2.0395439,95012.0,95011.0,9.80052555]
[1763386004641,2.0395439,95012.0,95011.0,9.72252555]
[1763386004642,2.0365439,95012.0,95011.0,9.72252555]
[1763386004847,2.0806839,95012.0,95011.0,9.72252555]
[1763386005152,2.1406039,95012.0,95011.0,9.72252555]
[1763386005379,2.1416039,95012.0,95011.0,9.72252555]
[1763386005576,2.0826839,95012.0,95011.0,9.72252555]
[1763386006319,2.09921807,95012.0,95011.0,9.72252555]
[1763386007038,0.06013016,95012.0,95011.0,9.76991555]
[1763386007247,0.03784749,95012.0,95011.0,9.72252555]
[1763386008561,2.07105749,95012.0,95011.0,9.72252555]
[1763386008793,2.09334016,95012.0,95011.0,9.72252555]
[1763386008996,2.06013016,95012.0,95011.0,9.72252555]
[1763386010187,2.06013016,95012.0,95011.0,9.76991555]
[1763386010360,0.06013016,95012.0,95011.0,9.83672555]
[1763386010566,0.03784749,95012.0,95011.0,9.83672555]
[1763386011383,0.03784749,95012.0,95011.0,9.72252555]
[1763386011836,0.01931332,95012.0,95011.0,9.64452555]
[1763386012034,0.01931332,95012.0,95011.0,9.69191555]
[1763386012169,0.02031332,95012.0,95011.0,9.69191555]
[1763386012781,0.02031332,95012.0,95011.0,9.75872555]
[1763386013122,0.02031332,95012.0,95011.0,9.64452555]
[1763386013278,0.02031332,95012.0,95011.0,9.75872555]
[1763386013482,0.02031332,95012.0,95011.0,9.69191555]
[1763386013663,0.02031332,95012.0,95011.0,9.75872555]
[1763386014948,0.03684473,95012.0,95011.0,9.75872555]
[1763386015179,0.03684473,95012.0,95011.0,9.64452555]
[1763386018388,2.03684473,95012.0,95011.0,9.63952555]
[1763386018596,2.0591274,95012.0,95011.0,9.63952555]
[1763386018955,2.05926116,95012.0,95011.0,9.63952555]
[1763386019639,2.05926116,95012.0,95011.0,9.56152555]
[1763386020046,0.05926116,95012.0,95011.0,9.56152555]
[1763386020258,0.03697849,95012.0,95011.0,9.56152555]
[1763386020506,0.03697849,95012.0,95011.0,9.67909555]
[1763386020939,0.03697849,95012.0,95011.0,9.56152555]
[1763386022023,0.03697849,95012.0,95011.0,9.67909555]
[1763386022191,0.03697849,95012.0,95011.0,9.60952555]
[1763386022398,0.03697849,95012.0,95011.0,9.56152555]
[1763386023212,0.07328849,95012.0,95011.0,9.56152555]
[1763386023420,2.07328849,95012.0,95011.0,9.56152555]
[1763386023637,2.16294116,95012.0,95011.0,9.56152555]
[1763386023838,2.21307247,95012.0,95011.0,9.56152555]
[1763386024102,2.26898244,95012.0,95011.0,9.56152555]
[1763386024298,2.26798244,95012.0,95011.0,9.56152555]
[1763386024502,2.22416449,95012.0,95011.0,9.56152555]
[1763386024941,2.16925452,95012.0,95011.0,9.56152555]
[1763386025146,2.22424906,95012.0,95011.0,9.56152555]
[1763386025384,2.22524681,95012.0,95011.0,9.56152555]
[1763386025616,2.22624681,95012.0,95011.0,9.56152555]
[1763386026648,2.17025452,95012.0,95011.0,9.48352555]
[1763386027199,2.22625202,95012.0,95011.0,9.48352555]
[1763386027548,2.17025452,95012.0,95011.0,9.48352555]
[1763386027746,2.18678876,95012.0,95011.0,9.48352555]
[1763386029342,2.2302075,95012.0,95011.0,9.48352555]
[1763386029553,2.44070722,95012.0,95011.0,9.05254427]
[1763386029895,2.44070722,95012.0,95011.0,9.03321427]
[1763386029896,2.47350374,95012.0,95011.0,9.03321427]
[1763386030113,2.47350374,95012.0,95011.0,9.0270381]
[1763386030332,2.50139646,95012.0,95011.0,9.0270381]
[1763386030543,2.50479263,95012.0,95011.0,8.01027378]
[1763386030748,2.5326974,95012.0,95011.0,7.98198724]
[1763386031171,2.42237243,95012.0,95011.0,7.98198724]
[1763386031380,2.47311016,95012.0,95011.0,7.98198724]
[1763386031759,2.47511016,95012.0,95011.0,7.63656318]
[1763386031986,2.29469068,95012.0,95011.0,7.63656318]
[1763386032343,2.29769068,95012.0,95011.0,7.63656318]
[1763386032950,2.35356312,95012.0,95011.0,7.63656318]
[1763386033158,2.20253421,95012.0,95011.0,7.63656318]
[1763386033364,1.99203449,95012.0,95011.0,7.63656318]
[1763386033789,1.99203449,95012.0,95011.0,7.60056318]
[1763386033960,2.03545323,95012.0,95011.0,7.60056318]
[1763386034164,2.03245323,95012.0,95011.0,7.60056318]
[1763386034387,2.03445323,95012.0,95011.0,7.60056318]
[1763386035404,2.01217056,95012.0,95011.0,7.60056318]
[1763386035633,2.03451537,95012.0,95011.0,7.60056318]
[1763386036081,2.05636057,95012.0,95011.0,7.60056318]
[1763386036808,2.08625329,95012.0,95011.0,7.60056318]
[1763386037927,2.123484,95012.0,95011.0,7.60056318]
[1763386038131,2.06971905,95012.0,95011.0,7.60056318]
[1763386039523,1.8497661,95012.0,95011.0,7.60056318]
[1763386040174,1.80634736,95012.0,95011.0,7.60056318]
[1763386040372,1.96510916,95012.0,95011.0,7.60056318]
[1763386040792,1.96510916,95012.0,95011.0,7.52256318]
[1763386041003,2.04374859,95012.0,95011.0,7.52256318]
[1763386041210,2.04674859,95012.0,95011.0,7.52256318]
[1763386041401,2.03137321,95012.0,95011.0,7.52256318]